bitfinex/quotes_SOLUSD_20241121
["timestamp","ask_amount","ask_price","bid_price","bid_amount"]
[1732165278835,160.8,240.23,240.02,73.62793383]
[1732165279143,160.8,240.23,240.02,4.80147238]
[1732165279144,160.8,240.22,240.02,4.80147238]
[1732165279566,0.5,240.21,240.02,4.80147238]
[1732165279866,32.1627,240.19,239.97,73.62793383]
[1732165280035,160.8,240.18,240.01,4.80147238]
[1732165280770,160.8,240.18,240.02,4.51262546]
[1732165280955,160.8,240.17,240.01,4.80147238]
[1732165281148,173.0767,240.16,240.01,4.80147238]
[1732165281345,173.0767,240.16,239.95,4.80147238]
[1732165281554,160.8,240.15,239.95,4.80147238]
[1732165282449,160.8,240.15,239.97,43.776884]
[1732165282642,160.8,240.15,239.99,43.776884]
[1732165282861,160.8,240.15,240.0,4.80147238]
[1732165283066,173.0767,240.16,240.02,20.0]
[1732165283259,173.0767,240.16,240.04,20.0]
[1732165283465,173.0767,240.16,240.06,20.0]
[1732165283663,173.0767,240.16,240.07,23.776884]
[1732165283974,12.2767,240.16,240.1,20.0]
[1732165284271,12.2767,240.16,240.11,23.776884]
[1732165284443,12.2767,240.16,240.14,20.0]
[1732165285052,12.2767,240.16,240.08,20.0]
[1732165285252,12.2767,240.16,240.12,20.0]
[1732165285539,12.2767,240.16,240.14,20.0]
[1732165285760,12.2767,240.16,240.15,43.776884]
[1732165285961,32.1627,240.19,240.16,20.0]
[1732165286169,32.1627,240.19,240.18,43.776884]
[1732165286548,12.7223,240.22,240.19,23.776884]
[1732165286762,12.7223,240.22,240.21,43.776884]
[1732165288963,12.7223,240.22,240.08,20.0]
[1732165289165,12.7223,240.22,240.18,20.0]
[1732165289379,12.7223,240.22,240.2,20.0]
[1732165290271,12.7223,240.22,240.1,20.0]
[1732165290478,12.7223,240.22,240.13,23.776884]
[1732165290644,12.7223,240.22,240.16,20.0]
[1732165290842,12.7223,240.22,240.17,23.776884]
[1732165291061,12.7223,240.22,240.2,20.0]
[1732165291467,12.7223,240.22,240.11,4.80147238]
[1732165291768,160.8,240.21,240.1,20.0]
[1732165292149,160.8,240.21,240.07,4.80147238]
[1732165292859,160.8,240.21,240.08,23.776884]
[1732165293568,160.8,240.21,240.09,20.0]
[1732165293992,160.8,240.21,240.1,23.776884]
[1732165294167,160.8,240.21,240.08,23.776884]
[1732165294168,160.8,240.21,240.11,20.0]
[1732165294473,160.8,240.2,240.07,4.80147238]
[1732165294867,160.8,240.19,240.07,4.80147238]
[1732165295572,12.7223,240.22,240.08,4.51262546]
[1732165295573,160.8,240.21,240.08,4.51262546]
[1732165295781,12.7223,240.22,240.09,28.57835638]
[1732165295952,12.7223,240.22,240.09,33.09098184]
[1732165296281,12.7223,240.22,240.12,20.0]
[1732165296579,12.7223,240.22,240.14,20.0]
[1732165296776,16.632203,240.24,240.19,23.776884]
[1732165296947,16.632203,240.24,240.22,20.0]
[1732165297150,16.632203,240.24,240.22,25.08313904]
[1732165297457,16.632203,240.24,240.23,5.08313904]
[1732165297763,16.632203,240.24,240.23,20.0]
[1732165298147,16.632203,240.24,240.14,43.776884]
[1732165298560,16.632203,240.24,240.16,43.776884]
[1732165298762,160.8,240.31,240.17,5.08313904]
[1732165298957,44.3261,240.32,240.18,43.776884]
[1732165299169,44.3261,240.32,240.19,9.5957645]
[1732165299482,44.3261,240.32,240.2,43.776884]
[1732165299685,44.3261,240.32,240.21,9.5957645]
[1732165299969,30.7694,240.38,240.24,23.776884]
[1732165300153,30.7694,240.38,240.29,20.0]
[1732165300473,47.392135,240.38,240.35,20.0]
[1732165300655,16.622735,240.38,240.36,23.776884]
[1732165300861,30.0522,240.44,240.4,23.776884]
[1732165301063,30.0522,240.44,240.39,20.0]
[1732165301454,30.0522,240.44,240.39,5.35036127]
[1732165301668,30.0522,240.44,240.37,4.80873657]
[1732165301669,160.8,240.43,240.29,4.80873657]
[1732165301973,30.0522,240.44,240.3,29.12724527]
[1732165301974,160.8,240.42,240.3,29.12724527]
[1732165302753,160.8,240.42,240.31,4.80873657]
[1732165302947,43.0204,240.44,240.32,29.12724527]
[1732165303170,43.0204,240.44,240.32,33.93598184]
[1732165303372,43.0204,240.44,240.32,29.12724527]
[1732165303547,44.5201,240.53,240.4,23.776884]
[1732165303755,44.5201,240.53,240.44,23.776884]
[1732165304065,44.5201,240.53,240.49,20.0]
[1732165304677,160.8,240.52,240.4,23.776884]
[1732165304978,160.8,240.51,240.33,3.62793383]
[1732165305277,161.3,240.5,240.27,3.62793383]
[1732165305463,12.3236,240.48,240.3,5.35036127]
[1732165306456,12.8236,240.48,240.3,5.35036127]
[1732165307069,12.3236,240.48,240.3,5.35036127]
[1732165307251,173.1236,240.48,240.31,8.94612595]
[1732165307447,173.1236,240.48,240.32,5.35036127]
[1732165307654,160.8,240.47,240.33,29.09507612]
[1732165307866,160.8,240.47,240.34,5.35036127]
[1732165308070,160.8,240.47,240.35,23.776884]
[1732165308280,160.8,240.47,240.35,29.12724527]
[1732165308800,160.8,240.47,240.36,5.35036127]
[1732165309100,160.8,240.47,240.37,23.776884]
[1732165309304,160.8,240.46,240.37,23.776884]
[1732165310992,160.8,240.46,240.38,5.35036127]
[1732165311791,160.8,240.46,240.33,5.31819212]
[1732165311792,160.8,240.45,240.33,5.31819212]
[1732165311996,160.8,240.45,240.27,5.35036127]
[1732165311997,31.1431,240.44,240.27,5.35036127]
[1732165312172,160.8,240.43,240.28,5.31819212]
[1732165312373,160.8,240.43,240.29,5.35036127]
[1732165312600,160.8,240.43,240.3,5.31819212]
[1732165312780,160.8,240.43,240.31,5.35036127]
[1732165313105,160.8,240.43,240.32,23.776884]
[1732165313278,160.8,240.43,240.33,5.35036127]
[1732165313478,160.8,240.43,240.34,23.776884]
[1732165313673,160.8,240.43,240.34,29.12724527]
[1732165313881,160.8,240.43,240.36,23.776884]
[1732165314489,160.8,240.43,240.37,10.66855339]
[1732165314807,31.1431,240.44,240.38,23.776884]
[1732165315588,31.1431,240.44,240.38,29.12724527]
[1732165315796,31.1431,240.44,240.39,5.35036127]
[1732165316098,31.1431,240.44,240.4,23.776884]
[1732165317903,160.8,240.47,240.4,23.776884]
[1732165318599,12.3236,240.48,240.4,29.12724527]
[1732165318783,12.3236,240.48,240.41,5.35036127]
[1732165318985,12.3236,240.48,240.34,5.31819212]
[1732165319186,160.8,240.47,240.35,23.776884]
[1732165320677,160.8,240.47,240.35,29.12724527]
[1732165321703,161.3,240.46,240.29,5.31819212]
[1732165321917,12.3236,240.48,240.29,5.31819212]
[1732165321918,160.8,240.45,240.31,23.88306061]
[1732165322120,160.8,240.45,240.33,23.88306061]
[1732165322402,160.8,240.47,240.35,23.88306061]
[1732165322710,160.8,240.47,240.39,23.88306061]
[1732165323001,160.8,240.47,240.4,23.776884]
[1732165323188,12.3236,240.48,240.4,29.12724527]
[1732165324803,160.8,240.49,240.4,29.12724527]
[1732165325002,12.5782,240.53,240.44,23.776884]
[1732165325205,32.3936,240.56,240.46,23.776884]
[1732165326106,160.8,240.59,240.49,23.88306061]
[1732165326307,160.8,240.6,240.5,34.44543739]
[1732165326603,31.4358,240.61,240.52,23.776884]
[1732165326808,173.3033,240.66,240.52,23.776884]
[1732165327106,173.3033,240.66,240.54,23.776884]
[1732165327785,177.4585,240.66,240.54,23.776884]
[1732165328389,177.4585,240.66,240.47,29.23342188]
[1732165328390,160.8,240.65,240.48,23.776884]
[1732165328604,0.5,240.61,240.47,5.35036127]
[1732165328812,160.8,240.6,240.41,29.23342188]
[1732165328984,31.2688,240.58,240.41,5.35036127]
[1732165329185,12.8712,240.57,240.41,5.35036127]
[1732165329484,161.3,240.56,240.41,5.35036127]
[1732165329809,160.8,240.55,240.41,5.35036127]
[1732165330002,160.8,240.54,240.41,5.35036127]
[1732165331002,164.9573,240.54,240.41,5.35036127]
[1732165331400,161.3,240.54,240.41,5.35036127]
[1732165331599,160.8,240.54,240.41,5.35036127]
[1732165331799,161.3,240.54,240.41,5.35036127]
[1732165332000,160.8,240.53,240.41,5.35036127]
[1732165332208,160.8,240.53,240.36,23.776884]
[1732165332407,160.8,240.52,240.36,5.35036127]
[1732165332915,0.5,240.48,240.29,45.3131]
[1732165333210,164.9585,240.47,240.3,5.35036127]
[1732165333412,0.5,240.46,240.3,5.35036127]
[1732165333589,181.8,240.45,240.3,5.35036127]
[1732165333788,0.5,240.41,240.25,5.35036127]
[1732165334018,160.8,240.4,240.25,5.35036127]
[1732165334219,20.0,240.45,240.25,5.35036127]
[1732165334220,160.8,240.39,240.27,23.88306061]
[1732165334508,160.8,240.39,240.27,5.35036127]
[1732165335504,203.5077,240.38,240.23,5.35036127]
[1732165335817,0.5,240.34,240.23,5.35036127]
[1732165336119,0.5,240.34,240.17,45.3131]
[1732165336120,160.8,240.33,240.17,23.88306061]
[1732165336292,160.8,240.32,240.16,5.35036127]
[1732165336491,160.8,240.31,240.16,5.35036127]
[1732165336707,0.5,240.27,240.16,5.35036127]
[1732165337012,160.8,240.26,240.16,5.35036127]
[1732165337694,160.8,240.28,240.21,23.88306061]
[1732165337898,45.7001,240.38,240.23,23.88306061]
[1732165338113,160.8,240.37,240.24,23.776884]
[1732165338305,160.8,240.36,240.26,23.776884]
[1732165338504,160.8,240.36,240.26,29.12724527]
[1732165338817,0.5,240.32,240.21,5.31819212]
[1732165339022,160.8,240.31,240.13,23.88306061]
[1732165339195,160.8,240.3,240.19,23.88306061]
[1732165339510,160.8,240.29,240.2,5.35036127]
[1732165339914,160.8,240.29,240.14,23.88306061]
[1732165340091,0.5,240.32,240.14,23.88306061]
[1732165340092,160.8,240.28,240.14,23.88306061]
[1732165340294,160.8,240.27,240.13,5.35036127]
[1732165340501,160.8,240.27,240.15,23.88306061]
[1732165340814,160.8,240.33,240.17,23.88306061]
[1732165341516,160.8,240.33,240.18,23.776884]
[1732165341720,160.8,240.33,240.17,5.35036127]
[1732165341721,0.5,240.3,240.17,5.35036127]
[1732165341891,160.8,240.29,240.18,23.776884]
[1732165343014,160.8,240.29,240.13,23.776884]
[1732165343197,160.8,240.29,240.14,5.35036127]
[1732165343400,160.8,240.29,240.16,23.88306061]
[1732165343692,160.8,240.29,240.17,5.35036127]
[1732165344388,160.8,240.29,240.18,23.776884]
[1732165344586,161.3,240.29,240.18,23.776884]
[1732165344797,160.8,240.29,240.11,5.35036127]
[1732165345015,12.0308,240.26,240.11,5.35036127]
[1732165345320,160.8,240.25,240.11,5.35036127]
[1732165346629,160.8,240.25,240.12,47.65994461]
[1732165346918,160.8,240.25,240.13,5.35036127]
[1732165347118,160.8,240.24,240.14,47.65994461]
[1732165347294,160.8,240.23,240.15,5.35036127]
[1732165347494,160.8,240.23,240.19,47.65994461]
[1732165347707,33.1693,240.27,240.2,29.12724527]
[1732165347913,13.1979,240.32,240.2,29.12724527]
[1732165347914,160.8,240.3,240.2,29.12724527]
[1732165348215,160.8,240.29,240.2,29.12724527]
[1732165348422,160.8,240.29,240.21,23.88306061]
[1732165348611,160.8,240.29,240.22,23.776884]
[1732165348819,13.1979,240.32,240.2,5.35036127]
[1732165348820,160.8,240.28,240.2,5.35036127]
[1732165349323,160.8,240.28,240.18,23.776884]
[1732165349811,160.8,240.27,240.11,29.20125273]
[1732165350019,4.6615,240.3,240.11,29.20125273]
[1732165350020,160.8,240.26,240.15,23.88306061]
[1732165350320,160.8,240.26,240.13,23.88306061]
[1732165350504,160.8,240.26,240.14,5.35036127]
[1732165351406,191.1338,240.25,240.14,5.35036127]
[1732165351706,160.8,240.11,240.08,5.35036127]
[1732165351894,161.3,240.1,239.89,23.88306061]
[1732165352101,12.48,240.21,239.82,36.62876061]
[1732165352102,0.5,240.03,239.82,36.62876061]
[1732165352294,160.8,240.02,239.8,23.88306061]
[1732165352519,0.5,239.99,239.78,23.88306061]
[1732165352904,160.8,239.98,239.78,23.88306061]
[1732165353225,160.8,239.97,239.78,23.88306061]
[1732165353526,160.8,239.97,239.8,23.88306061]
[1732165353714,160.8,239.97,239.76,12.7457]
[1732165353715,160.8,239.97,239.82,23.88306061]
[1732165353892,160.8,239.97,239.84,23.88306061]
[1732165354096,1.0,240.07,239.78,70.0]
[1732165354097,160.8,239.96,239.89,23.776884]
[1732165354418,10.408,240.2,239.89,23.776884]
[1732165354419,160.8,240.07,239.95,23.776884]
[1732165354595,160.8,240.06,239.95,23.776884]
[1732165355310,160.8,240.06,239.93,23.776884]
[1732165355509,160.8,240.06,239.97,23.776884]
[1732165355819,160.8,240.07,239.99,23.776884]
[1732165356202,160.8,240.06,239.92,23.88306061]
[1732165356396,160.8,240.05,239.91,43.776884]
[1732165356615,160.8,240.05,239.92,38.94009087]
[1732165356819,160.8,240.05,239.91,43.776884]
[1732165357216,160.8,240.05,239.92,38.94009087]
[1732165357396,160.8,240.05,239.94,38.94009087]
[1732165357597,160.8,240.05,239.95,23.776884]
[1732165358018,160.8,240.05,239.99,23.776884]
[1732165358224,160.8,240.04,239.82,70.0]
[1732165358398,160.8,240.03,239.86,38.94009087]
[1732165358731,160.8,240.03,239.9,38.94009087]
[1732165359024,160.8,240.02,239.92,38.94009087]
[1732165359525,160.8,240.02,239.94,23.776884]
[1732165359718,160.8,240.02,239.94,62.71697487]
[1732165360424,160.8,240.07,240.0,38.94009087]
[1732165360625,160.8,240.06,240.01,23.776884]
[1732165361133,160.8,240.06,239.93,20.0]
[1732165361426,160.8,240.05,239.9,38.94009087]
[1732165361626,160.8,240.05,239.82,102.1689]
[1732165361627,160.8,240.05,239.92,38.94009087]
[1732165361817,160.8,240.04,239.92,38.94009087]
[1732165362209,160.8,240.04,239.9,38.94009087]
[1732165362426,160.8,240.04,239.93,38.94009087]
[1732165362621,160.8,240.04,239.94,20.0]
[1732165362816,160.8,240.04,239.95,38.94009087]
[1732165363525,160.8,240.04,239.96,23.776884]
[1732165363731,160.8,240.04,239.94,23.776884]
[1732165363918,160.8,240.04,239.95,20.0]
[1732165364229,160.8,240.04,239.96,23.776884]
[1732165364467,160.8,240.04,239.95,58.94009087]
[1732165364745,160.8,240.07,239.96,23.776884]
[1732165365424,160.8,240.06,239.96,23.776884]
[1732165365807,160.8,240.06,239.94,23.776884]
[1732165366909,160.8,240.06,239.96,23.776884]
[1732165367338,160.8,240.06,239.98,23.776884]
[1732165367511,160.8,240.05,239.98,23.776884]
[1732165368546,160.8,240.05,239.93,38.94009087]
[1732165368715,160.8,240.04,239.93,38.94009087]
[1732165369432,160.8,240.04,239.91,38.94009087]
[1732165369634,160.8,240.04,239.93,38.94009087]
[1732165370138,160.8,240.04,239.95,38.94009087]
[1732165370634,160.8,240.03,239.99,38.94009087]
[1732165370813,160.8,240.07,239.99,38.94009087]
[1732165371140,160.8,240.07,240.02,23.776884]
[1732165371519,160.8,240.07,240.0,23.776884]
[1732165372632,160.8,240.07,240.01,38.94009087]
[1732165372949,160.8,240.07,240.0,23.776884]
[1732165373242,160.8,240.07,239.98,23.776884]
[1732165373825,160.8,240.07,240.0,23.776884]
[1732165374345,160.8,240.06,239.85,0.5]
[1732165374525,160.8,240.05,239.95,38.94009087]
[1732165374727,45.2274,240.14,239.91,38.94009087]
[1732165374728,43.8047,240.03,239.91,38.94009087]
[1732165374942,160.8,240.02,239.91,38.94009087]
[1732165375430,160.8,240.01,239.85,38.94009087]
[1732165375623,160.8,240.01,239.84,8.3972221]
[1732165375624,23.776884,239.99,239.83,38.94009087]
[1732165375829,160.8,239.98,239.81,38.94009087]
[1732165376026,160.8,239.97,239.81,38.94009087]
[1732165376622,160.8,239.97,239.76,78.83692237]
[1732165376623,160.8,239.97,239.82,23.98340189]
[1732165376985,160.8,239.97,239.84,23.98340189]
[1732165377246,160.8,239.97,239.86,23.98340189]
[1732165377941,160.8,239.97,239.84,23.98340189]
[1732165378248,12.624,239.95,239.81,23.98340189]
[1732165378433,160.8,239.94,239.83,23.98340189]
[1732165378631,160.8,239.94,239.84,43.776884]
[1732165379638,160.8,239.93,239.82,20.0]
[1732165379839,160.8,239.93,239.83,23.98340189]
[1732165380352,160.8,239.93,239.84,20.0]
[1732165380558,160.8,239.93,239.81,23.98340189]
[1732165380855,160.8,239.92,239.75,23.98340189]
[1732165381154,160.8,239.91,239.73,23.98340189]
[1732165381353,23.776884,239.89,239.73,23.98340189]
[1732165381652,13.1696,239.88,239.73,23.98340189]
[1732165383160,13.1696,239.88,239.75,23.98340189]
[1732165383460,13.1696,239.88,239.78,23.776884]
[1732165384152,160.8,239.87,239.79,23.98340189]
[1732165384460,13.1696,239.88,239.81,23.98340189]
[1732165384461,160.8,239.86,239.81,23.98340189]
[1732165384648,160.8,239.86,239.83,23.98340189]
[1732165384949,13.1696,239.88,239.85,23.98340189]
[1732165385148,31.4024,239.9,239.85,23.98340189]
[1732165385149,160.8,239.87,239.85,23.98340189]
[1732165385355,160.8,239.87,239.81,20.0]
[1732165385529,160.8,239.87,239.8,23.98340189]
[1732165385728,160.8,239.86,239.8,23.776884]
[1732165386150,160.8,239.86,239.78,23.98340189]
[1732165386151,160.8,239.85,239.78,23.98340189]
[1732165386331,160.8,239.85,239.8,23.98340189]
[1732165386759,160.8,239.85,239.82,23.98340189]
[1732165386937,160.8,239.85,239.84,47.76028589]
[1732165387152,31.4024,239.9,239.84,47.76028589]
[1732165387153,160.8,239.89,239.84,23.98340189]
[1732165387334,160.8,239.89,239.83,43.776884]
[1732165387533,160.8,239.89,239.85,23.776884]
[1732165387771,160.8,239.88,239.85,23.776884]
[1732165388450,160.8,239.88,239.83,43.776884]
[1732165388651,160.8,239.88,239.84,23.98340189]
[1732165388848,160.8,239.88,239.85,23.776884]
[1732165389160,160.8,239.88,239.87,23.776884]
[1732165389668,160.8,239.93,239.88,20.0]
[1732165389961,160.8,239.93,239.91,23.776884]
[1732165390140,160.8,239.92,239.91,23.776884]
[1732165391749,160.8,239.92,239.88,20.0]
[1732165391750,160.8,239.92,239.88,23.776884]
[1732165391952,160.8,239.92,239.89,20.0]
[1732165392144,160.8,239.92,239.9,47.76028589]
[1732165392345,160.8,239.92,239.9,23.776884]
[1732165393064,160.8,239.92,239.86,23.98340189]
[1732165393268,160.8,239.91,239.87,23.776884]
[1732165393568,160.8,239.91,239.85,23.776884]
[1732165394063,160.8,239.9,239.84,23.98340189]
[1732165394264,160.8,239.9,239.86,23.98340189]
[1732165395259,160.8,239.9,239.87,23.776884]
[1732165395759,160.8,239.9,239.86,23.98340189]
[1732165395958,160.8,239.9,239.87,23.776884]
[1732165396551,160.8,239.95,239.89,23.776884]
[1732165396865,160.8,239.95,239.91,23.776884]
[1732165397166,160.8,239.94,239.93,23.776884]
[1732165397554,160.8,239.99,239.96,20.0]
[1732165397875,12.9075,240.07,239.94,20.0]
[1732165397876,160.8,240.04,240.02,20.0]
[1732165398067,160.8,240.06,240.03,47.76028589]
[1732165398252,160.8,240.06,240.05,47.76028589]
[1732165398677,160.8,240.06,240.05,23.98340189]
[1732165399172,160.8,240.06,240.02,20.0]
[1732165399173,160.8,240.06,240.03,23.98340189]
[1732165399358,160.8,240.06,240.04,23.776884]
[1732165399560,160.8,240.06,240.03,23.98340189]
[1732165400351,160.8,240.06,240.01,23.98340189]
[1732165402275,160.8,240.06,240.02,23.776884]
[1732165402874,160.8,240.06,240.05,23.98340189]
[1732165403087,160.8,240.06,240.03,23.98340189]
[1732165403389,160.8,240.06,240.04,23.776884]
[1732165403571,160.8,240.06,240.05,23.98340189]
[1732165403763,31.4669,240.12,240.06,23.776884]
[1732165403960,160.8,240.11,240.06,23.776884]
[1732165404181,160.8,240.11,240.07,23.98340189]
[1732165404469,160.8,240.1,240.09,23.98340189]
[1732165404681,160.8,240.1,240.09,47.76028589]
[1732165404963,160.8,240.17,240.1,43.776884]
[1732165405164,160.8,240.16,240.14,23.776884]
[1732165405375,160.8,240.13,239.97,70.0]
[1732165405569,160.8,240.12,240.02,23.98340189]
[1732165405790,160.8,240.11,240.02,23.98340189]
[1732165406607,160.8,240.11,240.03,20.0]
[1732165406889,160.8,240.11,240.04,23.776884]
[1732165407071,160.8,240.1,239.99,20.0]
[1732165407272,160.8,240.1,239.98,23.98340189]
[1732165407671,160.8,240.09,239.98,23.98340189]
[1732165408090,160.8,240.09,240.02,23.98340189]
[1732165408593,160.8,240.08,239.94,4.83031605]
[1732165408891,13.0041,240.06,240.0,23.98340189]
[1732165409186,160.8,240.05,240.0,23.98340189]
[1732165409393,160.8,240.05,239.98,23.98340189]
[1732165409606,160.8,240.05,239.96,23.98340189]
[1732165409795,160.8,240.05,239.98,23.98340189]
[1732165410195,160.8,240.04,239.97,4.83031605]
[1732165410503,160.8,240.04,240.0,23.98340189]
[1732165410709,160.8,240.04,240.01,20.0]
[1732165411005,13.0041,240.06,240.01,20.0]
[1732165411006,13.2943,240.11,240.03,43.776884]
[1732165411211,13.2943,240.11,239.98,0.5]
[1732165411212,160.8,240.1,240.05,47.76028589]
[1732165411384,160.8,240.09,240.08,23.776884]
[1732165411589,13.2943,240.16,240.1,23.776884]
[1732165411791,160.8,240.15,240.1,23.776884]
[1732165412306,160.8,240.15,240.11,5.62757716]
[1732165413297,32.5479,240.23,240.14,67.76028589]
[1732165413504,160.8,240.22,240.17,23.98340189]
[1732165414014,160.8,240.22,240.15,23.98340189]
[1732165414710,160.8,240.22,240.13,23.98340189]
[1732165415114,32.5479,240.23,240.13,23.98340189]
[1732165415115,160.8,240.21,240.13,23.98340189]
[1732165415418,160.8,240.21,240.11,23.98340189]
[1732165416686,160.8,240.21,240.08,20.0]
[1732165416894,160.8,240.2,240.11,23.98340189]
[1732165417121,160.8,240.2,240.13,23.98340189]
[1732165417302,160.8,240.19,240.13,23.98340189]
[1732165417995,32.5479,240.23,240.09,23.98340189]
[1732165417996,160.8,240.12,240.09,23.98340189]
[1732165418199,160.8,240.11,240.09,23.98340189]
[1732165418798,160.8,240.11,240.09,29.61097905]
[1732165419001,160.8,240.11,240.09,34.82389467]
[1732165419597,160.8,240.11,240.1,5.62757716]
[1732165420849,160.8,240.11,240.09,23.98340189]
[1732165421024,160.8,240.1,240.05,23.98340189]
[1732165421596,160.8,240.1,239.97,5.62757716]
[1732165421597,160.8,240.09,240.08,23.98340189]
[1732165422321,160.8,240.09,240.08,47.76028589]
[1732165422523,12.2439,240.18,240.08,23.98340189]
[1732165422820,160.8,240.17,240.12,23.98340189]
[1732165424497,12.2439,240.18,240.04,5.62757716]
[1732165424498,136.81659811,240.11,240.05,20.0]
[1732165424698,136.81659811,240.1,240.09,43.776884]
[1732165425502,136.81659811,240.1,240.09,67.76028589]
[1732165425698,136.81659811,240.1,240.09,73.38786305]
[1732165426000,136.81659811,240.1,240.09,43.98340189]
[1732165427710,12.2439,240.18,240.09,43.98340189]
[1732165427912,160.8,240.17,240.12,23.98340189]
[1732165428531,160.8,240.17,240.1,23.98340189]
[1732165428702,160.8,240.17,240.07,23.98340189]
[1732165429022,160.8,240.17,240.11,23.98340189]
[1732165429229,160.8,240.17,240.09,23.98340189]
[1732165431303,160.8,240.17,240.07,23.98340189]
[1732165431502,160.8,240.06,240.05,23.98340189]
[1732165431711,23.776884,240.17,240.05,23.98340189]
[1732165431909,160.8,240.16,240.05,23.98340189]
[1732165432620,160.8,240.16,240.09,23.98340189]
[1732165433717,160.8,240.16,240.07,23.98340189]
[1732165433918,160.8,240.16,240.05,23.98340189]
[1732165434321,23.776884,240.15,240.05,23.98340189]
[1732165434634,36.678084,240.13,239.96,23.98340189]
[1732165434935,24.776884,240.11,239.94,23.98340189]
[1732165435231,24.276884,240.07,239.92,23.98340189]
[1732165435404,23.776884,240.05,239.92,23.98340189]
[1732165435909,23.776884,240.03,239.92,23.98340189]
[1732165437239,23.776884,240.03,239.9,23.98340189]
[1732165437532,155.17242284,239.89,239.84,23.98340189]
[1732165437731,155.17242284,239.88,239.84,23.98340189]
[1732165438030,155.17242284,239.88,239.82,23.98340189]
[1732165438832,155.17242284,239.88,239.82,29.19631751]
[1732165439054,155.17242284,239.88,239.86,23.98340189]
[1732165439407,155.17242284,239.87,239.86,29.19631751]
[1732165439643,13.0458,239.95,239.86,54.41745854]
[1732165439839,160.8,239.94,239.91,23.98340189]
[1732165440132,160.8,239.94,239.93,23.98340189]
[1732165440933,160.8,239.94,239.91,23.98340189]
[1732165441133,160.8,239.94,239.89,23.98340189]
[1732165441338,160.8,239.94,239.91,23.98340189]
[1732165441746,160.8,239.94,239.93,23.98340189]
[1732165442147,160.8,239.94,239.77,0.5]
[1732165442148,160.8,239.94,239.85,23.98340189]
[1732165442352,160.8,239.94,239.73,70.5]
[1732165442353,23.776884,239.93,239.81,23.98340189]
[1732165442745,136.81659811,239.79,239.67,70.0]
[1732165442936,129.71659811,239.78,239.7,0.5]
[1732165443135,23.776884,239.93,239.67,70.0]
[1732165443136,129.71659811,239.77,239.67,70.5]
[1732165443354,129.71659811,239.76,239.7,0.5]
[1732165443544,129.71659811,239.76,239.68,4.56382562]
[1732165443743,129.71659811,239.76,239.75,23.98340189]
[1732165443958,33.0258,239.85,239.76,20.0]
[1732165444140,153.7,239.84,239.79,23.98340189]
[1732165444459,153.7,239.84,239.81,23.98340189]
[1732165445253,33.0258,239.91,239.83,23.98340189]
[1732165445457,153.7,239.9,239.85,23.98340189]
[1732165445655,153.7,239.9,239.87,23.98340189]
[1732165446358,153.7,239.9,239.85,23.98340189]
[1732165446861,153.7,239.89,239.84,20.0]
[1732165447061,153.7,239.89,239.86,20.0]
[1732165447284,153.7,239.88,239.86,20.0]
[1732165447503,153.7,239.88,239.82,4.60705714]
[1732165447674,153.7,239.88,239.83,23.776884]
[1732165447867,153.7,239.87,239.82,4.60705714]
[1732165448068,153.7,239.82,239.81,23.98340189]
[1732165448268,153.7,239.82,239.79,23.98340189]
[1732165448975,153.7,239.82,239.81,23.98340189]